[Event "Early-Titled-Tuesday-Blitz-April-23-2024"]
[Site "Chess.com"]
[Date "2024.04.23"]
[Round "5"]
[White "patzer-reloaded"]
[Black "mary-sanna"]
[Result "1-0"]
[WhiteElo "2436"]
[BlackElo "2253"]
[TimeControl "180+1"]
[EndTime "8:57:56 PDT"]
[Termination "patzer-reloaded won by resignation"]

1. d4 {[%clk 0:03:00.9]} 1... d5 {[%clk 0:03:00]} 2. c4 {[%clk 0:03:00.8]} 2...
e6 {[%clk 0:02:59.9]} 3. Nc3 {[%clk 0:03:01]} 3... Nf6 {[%clk 0:02:59.9]} 4. Bg5
{[%clk 0:03:00.1]} 4... Be7 {[%clk 0:02:59.4]} 5. Nf3 {[%clk 0:02:57.7]} 5...
O-O {[%clk 0:02:59.1]} 6. e3 {[%clk 0:02:57.6]} 6... dxc4 {[%clk 0:02:59.5]} 7.
Bxc4 {[%clk 0:02:57]} 7... c5 {[%clk 0:02:59.9]} 8. O-O {[%clk 0:02:56.3]} 8...
a6 {[%clk 0:02:59.5]} 9. Qe2 {[%clk 0:02:53.1]} 9... Nc6 {[%clk 0:02:57.2]} 10.
Rad1 {[%clk 0:02:50.5]} 10... Qc7 {[%clk 0:02:48.9]} 11. d5 {[%clk 0:02:47.3]}
11... exd5 {[%clk 0:02:45.8]} 12. Nxd5 {[%clk 0:02:40.4]} 12... Nxd5 {[%clk
0:02:44.4]} 13. Bxd5 {[%clk 0:02:39.5]} 13... Bg4 {[%clk 0:02:38.2]} 14. Bf4
{[%clk 0:02:17.3]} 14... Qb6 {[%clk 0:02:22.6]} 15. h3 {[%clk 0:02:14.1]} 15...
Bh5 {[%clk 0:02:10.8]} 16. g4 {[%clk 0:02:07.5]} 16... Bg6 {[%clk 0:02:10.8]}
17. Ne5 {[%clk 0:01:53.3]} 17... Nxe5 {[%clk 0:01:50.3]} 18. Bxe5 {[%clk
0:01:54.2]} 18... Bf6 {[%clk 0:01:34.4]} 19. Bxf6 {[%clk 0:01:51.9]} 19... Qxf6
{[%clk 0:01:35.3]} 20. Rd2 {[%clk 0:01:40.8]} 20... Rab8 {[%clk 0:01:34]} 21.
Rfd1 {[%clk 0:01:26.7]} 21... Qh4 {[%clk 0:01:24.6]} 22. Qf3 {[%clk 0:01:12.5]}
22... b5 {[%clk 0:01:15.6]} 23. Kg2 {[%clk 0:01:11.7]} 23... h5 {[%clk
0:01:14.4]} 24. Qg3 {[%clk 0:01:10.5]} 24... Qxg3+ {[%clk 0:01:09.5]} 25. Kxg3
{[%clk 0:01:10.4]} 25... hxg4 {[%clk 0:01:10.4]} 26. hxg4 {[%clk 0:01:10.7]}
26... Rfc8 {[%clk 0:00:59]} 27. f4 {[%clk 0:01:07.5]} 27... Kf8 {[%clk
0:00:39.9]} 28. f5 {[%clk 0:01:06.5]} 28... Bh7 {[%clk 0:00:40.1]} 29. Rh2
{[%clk 0:00:58.6]} 29... Bg8 {[%clk 0:00:40.2]} 30. g5 {[%clk 0:00:57]} 30...
Ke7 {[%clk 0:00:37.6]} 31. e4 {[%clk 0:00:51.1]} 31... f6 {[%clk 0:00:34.8]} 32.
Kf4 {[%clk 0:00:49]} 32... Rd8 {[%clk 0:00:30.7]} 33. Rhd2 {[%clk 0:00:44.7]}
33... c4 {[%clk 0:00:25.9]} 34. Bxg8 {[%clk 0:00:36.1]} 34... Rxd2 {[%clk
0:00:24.7]} 35. Rxd2 {[%clk 0:00:37]} 35... Rxg8 {[%clk 0:00:24.9]} 36. e5
{[%clk 0:00:37.9]} 36... fxe5+ {[%clk 0:00:21.8]} 37. Kxe5 {[%clk 0:00:37.6]}
37... Rh8 {[%clk 0:00:21.1]} 38. f6+ {[%clk 0:00:37]} 38... gxf6+ {[%clk
0:00:21.2]} 39. gxf6+ {[%clk 0:00:36.8]} 39... Kf7 {[%clk 0:00:21.8]} 40. Rd7+
{[%clk 0:00:36.2]} 40... Kg6 {[%clk 0:00:22.2]} 41. Rg7+ {[%clk 0:00:35.4]}
41... Kh6 {[%clk 0:00:20.9]} 42. Rg2 {[%clk 0:00:33.7]} 42... Re8+ {[%clk
0:00:19.9]} 43. Kd6 {[%clk 0:00:33.2]} 43... Re3 {[%clk 0:00:19.1]} 44. Rf2
{[%clk 0:00:26.4]} 44... b4 {[%clk 0:00:15.1]} 45. f7 {[%clk 0:00:25.6]} 45...
Rd3+ {[%clk 0:00:15]} 46. Kc7 {[%clk 0:00:23.3]} 46... c3 {[%clk 0:00:13]} 47.
f8=Q+ {[%clk 0:00:22.3]} 47... Kh5 {[%clk 0:00:12.9]} 48. Qf5+ {[%clk
0:00:15.7]} 1-0

[Event "Early-Titled-Tuesday-Blitz-April-23-2024"]
[Site "Chess.com"]
[Date "2024.04.23"]
[Round "5"]
[White "baki83"]
[Black "LawrenceTrent"]
[Result "1/2-1/2"]
[WhiteElo "2909"]
[BlackElo "2715"]
[TimeControl "180+1"]
[EndTime "8:57:57 PDT"]
[Termination "Game drawn - insufficient material"]

1. e4 {[%clk 0:03:00.9]} 1... e6 {[%clk 0:03:00.1]} 2. d4 {[%clk 0:03:00.5]}
2... d5 {[%clk 0:03:00.5]} 3. exd5 {[%clk 0:03:01.4]} 3... exd5 {[%clk
0:03:00.4]} 4. Nf3 {[%clk 0:03:02.1]} 4... Bd6 {[%clk 0:03:00.7]} 5. c4 {[%clk
0:03:02.2]} 5... dxc4 {[%clk 0:02:59.8]} 6. Bxc4 {[%clk 0:03:01.6]} 6... Nf6
{[%clk 0:02:56.8]} 7. Qe2+ {[%clk 0:02:59.7]} 7... Qe7 {[%clk 0:02:56.9]} 8.
Qxe7+ {[%clk 0:02:59.8]} 8... Kxe7 {[%clk 0:02:54.5]} 9. O-O {[%clk 0:03:00.4]}
9... Rd8 {[%clk 0:02:54.4]} 10. Nc3 {[%clk 0:02:59.3]} 10... h6 {[%clk
0:02:53.1]} 11. Re1+ {[%clk 0:02:52.4]} 11... Kf8 {[%clk 0:02:53.1]} 12. Ne5
{[%clk 0:02:52.7]} 12... Re8 {[%clk 0:02:53.3]} 13. Bf4 {[%clk 0:02:40.7]} 13...
Be6 {[%clk 0:02:51.4]} 14. Bxe6 {[%clk 0:02:04.9]} 14... Rxe6 {[%clk 0:02:50.2]}
15. Nb5 {[%clk 0:02:05.3]} 15... Nd5 {[%clk 0:02:47.2]} 16. Bg3 {[%clk
0:02:00.8]} 16... Nc6 {[%clk 0:02:34.4]} 17. Nxc6 {[%clk 0:01:51.3]} 17... Rxe1+
{[%clk 0:02:28.5]} 18. Rxe1 {[%clk 0:01:50.1]} 18... Bxg3 {[%clk 0:02:29.4]} 19.
hxg3 {[%clk 0:01:23.3]} 19... bxc6 {[%clk 0:02:29.2]} 20. Nc3 {[%clk 0:01:22.5]}
20... Rb8 {[%clk 0:02:28.7]} 21. Nxd5 {[%clk 0:01:15]} 21... cxd5 {[%clk
0:02:28]} 22. b3 {[%clk 0:01:15.8]} 22... Rb4 {[%clk 0:02:24.8]} 23. Rc1 {[%clk
0:01:12.6]} 23... Rxd4 {[%clk 0:02:22.1]} 24. Rxc7 {[%clk 0:01:13.2]} 24... Rd1+
{[%clk 0:02:22.5]} 25. Kh2 {[%clk 0:01:13.6]} 25... Rd2 {[%clk 0:02:23.1]} 26.
Rxa7 {[%clk 0:01:13.4]} 26... Rxf2 {[%clk 0:02:23]} 27. Kg1 {[%clk 0:00:59.6]}
27... Rb2 {[%clk 0:02:21.8]} 28. Kf1 {[%clk 0:00:52.2]} 28... d4 {[%clk
0:02:21.6]} 29. g4 {[%clk 0:00:49.5]} 29... d3 {[%clk 0:02:19.8]} 30. Rd7 {[%clk
0:00:47]} 30... Rxa2 {[%clk 0:02:19.1]} 31. Rxd3 {[%clk 0:00:47.6]} 31... Ke7
{[%clk 0:02:17.6]} 32. Rf3 {[%clk 0:00:47.2]} 32... f6 {[%clk 0:02:17.2]} 33.
Kg1 {[%clk 0:00:47.3]} 33... Kf7 {[%clk 0:02:17]} 34. Kh2 {[%clk 0:00:47.9]}
34... Kg6 {[%clk 0:02:17.4]} 35. Kg3 {[%clk 0:00:48.4]} 35... Rb2 {[%clk
0:02:16.6]} 36. Rc3 {[%clk 0:00:47.7]} 36... Kf7 {[%clk 0:02:12.5]} 37. Kf3
{[%clk 0:00:47.4]} 37... Kg6 {[%clk 0:02:11.5]} 38. g3 {[%clk 0:00:46.7]} 38...
Kg5 {[%clk 0:02:09.5]} 39. Rc5+ {[%clk 0:00:46.8]} 39... Kg6 {[%clk 0:02:09.7]}
40. Rb5 {[%clk 0:00:47.5]} 40... Kf7 {[%clk 0:02:05.2]} 41. Rb7+ {[%clk
0:00:44.4]} 41... Ke6 {[%clk 0:02:05.1]} 42. Ke4 {[%clk 0:00:40.1]} 42... g6
{[%clk 0:02:04.9]} 43. Rb6+ {[%clk 0:00:39.7]} 43... Ke7 {[%clk 0:02:04.3]} 44.
b4 {[%clk 0:00:37.3]} 44... Re2+ {[%clk 0:01:59.4]} 45. Kf3 {[%clk 0:00:32.4]}
45... Rb2 {[%clk 0:01:57.4]} 46. Ke3 {[%clk 0:00:28.1]} 46... Rb3+ {[%clk
0:01:55.7]} 47. Kf4 {[%clk 0:00:27.3]} 47... g5+ {[%clk 0:01:42]} 48. Kf5 {[%clk
0:00:26.6]} 48... Rxg3 {[%clk 0:01:42.3]} 49. Rb7+ {[%clk 0:00:25.7]} 49... Kd6
{[%clk 0:01:42.4]} 50. Rb6+ {[%clk 0:00:20.6]} 50... Ke7 {[%clk 0:01:30.9]} 51.
Re6+ {[%clk 0:00:20.1]} 51... Kd7 {[%clk 0:01:15.4]} 52. Rxf6 {[%clk 0:00:17.3]}
52... Rf3+ {[%clk 0:01:15.3]} 53. Ke5 {[%clk 0:00:15.4]} 53... Rg3 {[%clk
0:01:12.9]} 54. Kf5 {[%clk 0:00:11.4]} 54... Rf3+ {[%clk 0:01:12.8]} 55. Kg6
{[%clk 0:00:10.8]} 55... Rf4 {[%clk 0:01:12.9]} 56. Rf7+ {[%clk 0:00:10.4]}
56... Kc6 {[%clk 0:01:03.9]} 57. Rh7 {[%clk 0:00:08.8]} 57... Rxg4 {[%clk
0:00:58.3]} 58. Rxh6 {[%clk 0:00:08.6]} 58... Rxb4 {[%clk 0:00:53.4]} 59. Kxg5+
{[%clk 0:00:08.7]} 59... Kc5 {[%clk 0:00:53.3]} 60. Rg6 {[%clk 0:00:09]} 60...
Rd4 {[%clk 0:00:53.5]} 61. Rf6 {[%clk 0:00:06.9]} 61... Rd5+ {[%clk 0:00:53.6]}
62. Rf5 {[%clk 0:00:07.8]} 62... Kc4 {[%clk 0:00:54]} 63. Rxd5 {[%clk
0:00:07.8]} 63... Kxd5 {[%clk 0:00:54.9]} 1/2-1/2

[Event "Early-Titled-Tuesday-Blitz-April-23-2024"]
[Site "Chess.com"]
[Date "2024.04.23"]
[Round "5"]
[White "FaustinoOro"]
[Black "CrgKrishna"]
[Result "1-0"]
[WhiteElo "2917"]
[BlackElo "2712"]
[TimeControl "180+1"]
[EndTime "8:57:59 PDT"]
[Termination "FaustinoOro won on time"]

1. d4 {[%clk 0:03:00.9]} 1... f5 {[%clk 0:02:58.3]} 2. Nf3 {[%clk 0:03:00.2]}
2... Nf6 {[%clk 0:02:53.6]} 3. c4 {[%clk 0:02:59.4]} 3... g6 {[%clk 0:02:52.9]}
4. Nc3 {[%clk 0:02:56.4]} 4... Bg7 {[%clk 0:02:51.6]} 5. g3 {[%clk 0:02:56.5]}
5... O-O {[%clk 0:02:50.1]} 6. Bg2 {[%clk 0:02:56.6]} 6... d6 {[%clk 0:02:50.7]}
7. O-O {[%clk 0:02:56.6]} 7... Nc6 {[%clk 0:02:51.4]} 8. d5 {[%clk 0:02:47]}
8... Ne5 {[%clk 0:02:51.3]} 9. Nxe5 {[%clk 0:02:32.1]} 9... dxe5 {[%clk
0:02:52.2]} 10. b3 {[%clk 0:02:28.1]} 10... a6 {[%clk 0:02:46.3]} 11. Qc2 {[%clk
0:02:26.2]} 11... Qe8 {[%clk 0:02:43.1]} 12. Rd1 {[%clk 0:02:18.6]} 12... h6
{[%clk 0:02:43]} 13. f4 {[%clk 0:02:11]} 13... e4 {[%clk 0:02:38.7]} 14. h3
{[%clk 0:02:01.8]} 14... e5 {[%clk 0:02:34.8]} 15. dxe6 {[%clk 0:01:56.9]} 15...
Bxe6 {[%clk 0:02:34.4]} 16. e3 {[%clk 0:01:45.6]} 16... g5 {[%clk 0:02:24.4]}
17. Bb2 {[%clk 0:01:44.1]} 17... Qg6 {[%clk 0:02:23.2]} 18. Qf2 {[%clk
0:01:35.5]} 18... Rad8 {[%clk 0:02:16.3]} 19. Rxd8 {[%clk 0:01:23.8]} 19... Rxd8
{[%clk 0:02:15.8]} 20. Rd1 {[%clk 0:01:24.5]} 20... Rxd1+ {[%clk 0:02:13.7]} 21.
Nxd1 {[%clk 0:01:25.4]} 21... Nh5 {[%clk 0:02:13.9]} 22. Bxg7 {[%clk 0:01:24.7]}
22... Qxg7 {[%clk 0:02:14.8]} 23. Kh2 {[%clk 0:01:20.9]} 23... Qd7 {[%clk
0:02:07.8]} 24. Nc3 {[%clk 0:01:15.7]} 24... Qd3 {[%clk 0:02:05.5]} 25. Qe1
{[%clk 0:01:00.9]} 25... Nf6 {[%clk 0:01:56.9]} 26. Qc1 {[%clk 0:00:50.3]} 26...
Qd6 {[%clk 0:01:32.9]} 27. Ne2 {[%clk 0:00:43]} 27... c5 {[%clk 0:01:25.6]} 28.
Kg1 {[%clk 0:00:38.4]} 28... Bf7 {[%clk 0:01:25.4]} 29. Kf2 {[%clk 0:00:34.3]}
29... Bh5 {[%clk 0:01:24.4]} 30. Nc3 {[%clk 0:00:34.9]} 30... Kf7 {[%clk
0:01:16.3]} 31. Bf1 {[%clk 0:00:30.9]} 31... Bf3 {[%clk 0:01:15.3]} 32. Be2
{[%clk 0:00:21.4]} 32... gxf4 {[%clk 0:00:50.8]} 33. gxf4 {[%clk 0:00:20.6]}
33... Bxe2 {[%clk 0:00:43.4]} 34. Nxe2 {[%clk 0:00:21.5]} 34... Qd3 {[%clk
0:00:43.1]} 35. Qb2 {[%clk 0:00:19.9]} 35... Qd6 {[%clk 0:00:30.5]} 36. Ng3
{[%clk 0:00:18.6]} 36... Kg6 {[%clk 0:00:29.5]} 37. Qc3 {[%clk 0:00:17.6]} 37...
b6 {[%clk 0:00:29.1]} 38. a3 {[%clk 0:00:17.1]} 38... a5 {[%clk 0:00:29.4]} 39.
Ne2 {[%clk 0:00:15.8]} 39... Qd3 {[%clk 0:00:20.4]} 40. Qb2 {[%clk 0:00:12.3]}
40... Qd1 {[%clk 0:00:18.3]} 41. Qe5 {[%clk 0:00:08.2]} 41... Qg1+ {[%clk
0:00:16.9]} 42. Nxg1 {[%clk 0:00:08.2]} 1-0

[Event "Early-Titled-Tuesday-Blitz-April-23-2024"]
[Site "Chess.com"]
[Date "2024.04.23"]
[Round "5"]
[White "NigiriSushies"]
[Black "Chernov_Alexander_A"]
[Result "1-0"]
[WhiteElo "2441"]
[BlackElo "2262"]
[TimeControl "180+1"]
[EndTime "8:57:59 PDT"]
[Termination "NigiriSushies won on time"]

1. e4 {[%clk 0:03:00.9]} 1... d6 {[%clk 0:02:59.1]} 2. d4 {[%clk 0:02:59.7]}
2... Nf6 {[%clk 0:02:59.2]} 3. Nc3 {[%clk 0:02:59.3]} 3... Nbd7 {[%clk 0:02:59]}
4. Nf3 {[%clk 0:02:56.8]} 4... e5 {[%clk 0:02:58.2]} 5. dxe5 {[%clk 0:02:53.9]}
5... dxe5 {[%clk 0:02:58.2]} 6. Bg5 {[%clk 0:02:54.3]} 6... Be7 {[%clk
0:02:57.9]} 7. Qd2 {[%clk 0:02:53.6]} 7... c6 {[%clk 0:02:54.6]} 8. O-O-O {[%clk
0:02:53.2]} 8... O-O {[%clk 0:02:52.1]} 9. Kb1 {[%clk 0:02:50]} 9... b5 {[%clk
0:02:51.3]} 10. a3 {[%clk 0:02:46]} 10... a5 {[%clk 0:02:49.9]} 11. Na2 {[%clk
0:02:39.8]} 11... a4 {[%clk 0:02:42.4]} 12. Nb4 {[%clk 0:02:38.9]} 12... Qc7
{[%clk 0:02:41.8]} 13. Qc3 {[%clk 0:02:31.8]} 13... Bxb4 {[%clk 0:02:27.7]} 14.
axb4 {[%clk 0:02:26.5]} 14... Nxe4 {[%clk 0:02:23.3]} 15. Qe3 {[%clk 0:02:18.9]}
15... Nxg5 {[%clk 0:02:21]} 16. Nxg5 {[%clk 0:02:17.8]} 16... Nf6 {[%clk
0:02:00.2]} 17. Qc5 {[%clk 0:01:53.6]} 17... h6 {[%clk 0:01:51.3]} 18. Nf3
{[%clk 0:01:50.6]} 18... Ne4 {[%clk 0:01:36.6]} 19. Qe3 {[%clk 0:01:48.5]} 19...
f5 {[%clk 0:01:35.4]} 20. Bd3 {[%clk 0:01:41.2]} 20... a3 {[%clk 0:01:28.6]} 21.
Bxe4 {[%clk 0:01:33.8]} 21... fxe4 {[%clk 0:01:15.6]} 22. Qxe4 {[%clk
0:01:32.9]} 22... axb2 {[%clk 0:00:55.7]} 23. Qxe5 {[%clk 0:01:25.2]} 23... Qf7
{[%clk 0:00:53.1]} 24. Qxb2 {[%clk 0:01:23.6]} 24... Be6 {[%clk 0:00:50.9]} 25.
Rhe1 {[%clk 0:01:05.3]} 25... Ra2 {[%clk 0:00:30.8]} 26. Qc3 {[%clk 0:00:43.6]}
26... Rfa8 {[%clk 0:00:26.4]} 27. Ne5 {[%clk 0:00:21.8]} 27... Qf6 {[%clk
0:00:16.9]} 28. f4 {[%clk 0:00:08.2]} 28... Bd5 {[%clk 0:00:15.9]} 29. g3 {[%clk
0:00:04.9]} 29... R2a3 {[%clk 0:00:14.4]} 30. Qd4 {[%clk 0:00:04.4]} 30... R8a4
{[%clk 0:00:12.3]} 31. Kc1 {[%clk 0:00:03.2]} 31... Bc4 {[%clk 0:00:12.2]} 32.
Nxc4 {[%clk 0:00:02.8]} 32... Qg6 {[%clk 0:00:09.9]} 33. Qd8+ {[%clk 0:00:02.2]}
33... Kh7 {[%clk 0:00:10]} 34. Ne5 {[%clk 0:00:02.6]} 34... Ra1+ {[%clk
0:00:09.7]} 35. Kd2 {[%clk 0:00:03.2]} 35... Qf5 {[%clk 0:00:07.4]} 36. Qd3
{[%clk 0:00:03.8]} 36... Qxd3+ {[%clk 0:00:06.6]} 37. Nxd3 {[%clk 0:00:04.7]}
37... Rxd1+ {[%clk 0:00:06.6]} 38. Rxd1 {[%clk 0:00:05.6]} 38... Ra2 {[%clk
0:00:06.8]} 39. Re1 {[%clk 0:00:05.9]} 39... Kg6 {[%clk 0:00:06.2]} 40. Re6+
{[%clk 0:00:06.4]} 1-0

[Event "Early-Titled-Tuesday-Blitz-April-23-2024"]
[Site "Chess.com"]
[Date "2024.04.23"]
[Round "5"]
[White "bubeliang"]
[Black "DanyKopy"]
[Result "1/2-1/2"]
[WhiteElo "2783"]
[BlackElo "2555"]
[TimeControl "180+1"]
[EndTime "8:58:01 PDT"]
[Termination "Game drawn - insufficient material"]

1. e4 {[%clk 0:02:56.8]} 1... c5 {[%clk 0:02:59.4]} 2. c3 {[%clk 0:02:47.5]}
2... d5 {[%clk 0:02:58.6]} 3. exd5 {[%clk 0:02:47.3]} 3... Qxd5 {[%clk
0:02:59.5]} 4. d4 {[%clk 0:02:46.1]} 4... Nc6 {[%clk 0:02:59.9]} 5. Nf3 {[%clk
0:02:42.4]} 5... Nf6 {[%clk 0:02:59.2]} 6. dxc5 {[%clk 0:02:35]} 6... Qxd1+
{[%clk 0:02:58.1]} 7. Kxd1 {[%clk 0:02:35.9]} 7... Bg4 {[%clk 0:02:57.8]} 8. h3
{[%clk 0:02:30.2]} 8... Bxf3+ {[%clk 0:02:57]} 9. gxf3 {[%clk 0:02:31.1]} 9...
e6 {[%clk 0:02:57]} 10. Be3 {[%clk 0:02:28.2]} 10... Nd5 {[%clk 0:02:52.9]} 11.
b4 {[%clk 0:02:14.8]} 11... a5 {[%clk 0:02:52.6]} 12. b5 {[%clk 0:02:08.6]}
12... Nxe3+ {[%clk 0:02:39.1]} 13. fxe3 {[%clk 0:02:09.5]} 13... Ne7 {[%clk
0:02:38.8]} 14. e4 {[%clk 0:01:53.1]} 14... Ng6 {[%clk 0:02:34.3]} 15. c6 {[%clk
0:01:45.7]} 15... bxc6 {[%clk 0:02:33.9]} 16. bxc6 {[%clk 0:01:46.6]} 16... Ne5
{[%clk 0:02:30.5]} 17. Nd2 {[%clk 0:01:45]} 17... Nxc6 {[%clk 0:02:26.2]} 18.
Bb5 {[%clk 0:01:42]} 18... Rc8 {[%clk 0:02:24.6]} 19. Nc4 {[%clk 0:01:37.8]}
19... Ke7 {[%clk 0:02:08.8]} 20. Bxc6 {[%clk 0:01:28]} 20... Rxc6 {[%clk
0:02:08.6]} 21. Nxa5 {[%clk 0:01:28.5]} 21... Rxc3 {[%clk 0:02:08.5]} 22. Ke2
{[%clk 0:01:24.9]} 22... Kf6 {[%clk 0:02:06.1]} 23. Rhc1 {[%clk 0:01:20.9]}
23... Rxc1 {[%clk 0:01:50.1]} 24. Rxc1 {[%clk 0:01:21.8]} 24... Ba3 {[%clk
0:01:50.1]} 25. Rc2 {[%clk 0:01:14.6]} 25... Ra8 {[%clk 0:01:48.2]} 26. Nc4
{[%clk 0:01:10.9]} 26... g5 {[%clk 0:01:36.2]} 27. Kf2 {[%clk 0:01:08.6]} 27...
h5 {[%clk 0:01:34.2]} 28. Kg2 {[%clk 0:00:57.3]} 28... Bc5 {[%clk 0:01:20.5]}
29. Nd2 {[%clk 0:00:49.5]} 29... Ba3 {[%clk 0:01:12.2]} 30. Nb3 {[%clk
0:00:46.8]} 30... Rd8 {[%clk 0:01:10.2]} 31. Re2 {[%clk 0:00:46]} 31... Rd1
{[%clk 0:01:09.1]} 32. Nd2 {[%clk 0:00:41]} 32... Bc5 {[%clk 0:01:04.9]} 33. Nf1
{[%clk 0:00:39.2]} 33... Bd4 {[%clk 0:01:00.1]} 34. Rd2 {[%clk 0:00:37.8]} 34...
Rxd2+ {[%clk 0:00:55.7]} 35. Nxd2 {[%clk 0:00:38.7]} 35... Ke5 {[%clk
0:00:54.7]} 36. a4 {[%clk 0:00:31.4]} 36... Kf4 {[%clk 0:00:51]} 37. Nb3 {[%clk
0:00:22.8]} 37... Ba7 {[%clk 0:00:49]} 38. Na5 {[%clk 0:00:21.4]} 38... g4
{[%clk 0:00:46.5]} 39. hxg4 {[%clk 0:00:22.3]} 39... hxg4 {[%clk 0:00:46.4]} 40.
fxg4 {[%clk 0:00:23.2]} 40... Kxe4 {[%clk 0:00:40.4]} 41. Nc6 {[%clk 0:00:23]}
41... Bc5 {[%clk 0:00:39]} 42. Nd8 {[%clk 0:00:20.1]} 42... Kf4 {[%clk
0:00:35.7]} 43. Nxf7 {[%clk 0:00:04.8]} 43... Kxg4 {[%clk 0:00:35.5]} 44. a5
{[%clk 0:00:04.6]} 44... Kf5 {[%clk 0:00:31.1]} 45. Kf3 {[%clk 0:00:03.4]} 45...
e5 {[%clk 0:00:29.9]} 46. a6 {[%clk 0:00:03.3]} 46... e4+ {[%clk 0:00:29.5]} 47.
Ke2 {[%clk 0:00:03.7]} 47... Ke6 {[%clk 0:00:28.9]} 48. Nd8+ {[%clk 0:00:04.1]}
48... Kd5 {[%clk 0:00:28.7]} 49. Nb7 {[%clk 0:00:03]} 49... Ba7 {[%clk
0:00:27.3]} 50. Na5 {[%clk 0:00:02.8]} 50... Kc5 {[%clk 0:00:25.3]} 51. Nb3+
{[%clk 0:00:03.5]} 51... Kb5 {[%clk 0:00:24.7]} 52. Nd2 {[%clk 0:00:04]} 52...
e3 {[%clk 0:00:23.7]} 53. Nf1 {[%clk 0:00:03.5]} 53... Kxa6 {[%clk 0:00:24.1]}
54. Nxe3 {[%clk 0:00:04]} 1/2-1/2

[Event "Early-Titled-Tuesday-Blitz-April-23-2024"]
[Site "Chess.com"]
[Date "2024.04.23"]
[Round "5"]
[White "campochess"]
[Black "levallem"]
[Result "0-1"]
[WhiteElo "2143"]
[BlackElo "2315"]
[TimeControl "180+1"]
[EndTime "8:58:02 PDT"]
[Termination "levallem won on time"]

1. Nf3 {[%clk 0:02:59.7]} 1... d5 {[%clk 0:02:59.4]} 2. b3 {[%clk 0:02:59.8]}
2... Nf6 {[%clk 0:02:59.9]} 3. Bb2 {[%clk 0:02:59.8]} 3... Bf5 {[%clk
0:02:59.9]} 4. d3 {[%clk 0:02:58.8]} 4... e6 {[%clk 0:02:59.5]} 5. g3 {[%clk
0:02:58.8]} 5... Nbd7 {[%clk 0:02:59.5]} 6. Bg2 {[%clk 0:02:58.7]} 6... Be7
{[%clk 0:02:59.7]} 7. O-O {[%clk 0:02:58.6]} 7... O-O {[%clk 0:02:59.4]} 8. Nbd2
{[%clk 0:02:58.6]} 8... c6 {[%clk 0:02:58.4]} 9. c4 {[%clk 0:02:58.4]} 9... h6
{[%clk 0:02:57.8]} 10. Rc1 {[%clk 0:02:58.2]} 10... Re8 {[%clk 0:02:57]} 11. Re1
{[%clk 0:02:57.8]} 11... Bh7 {[%clk 0:02:52.6]} 12. Nf1 {[%clk 0:02:57.4]} 12...
Bb4 {[%clk 0:02:51]} 13. Bc3 {[%clk 0:02:54.1]} 13... Bxc3 {[%clk 0:02:50.8]}
14. Rxc3 {[%clk 0:02:54]} 14... Qa5 {[%clk 0:02:48.3]} 15. Qd2 {[%clk
0:02:48.3]} 15... Rac8 {[%clk 0:02:44.6]} 16. Rc2 {[%clk 0:02:48.3]} 16... Qa3
{[%clk 0:02:37.1]} 17. Qc1 {[%clk 0:02:27.5]} 17... Qa5 {[%clk 0:02:32.1]} 18.
Qd2 {[%clk 0:02:26.8]} 18... Qa6 {[%clk 0:02:29.9]} 19. a4 {[%clk 0:02:24.4]}
19... b6 {[%clk 0:02:13.6]} 20. Nd4 {[%clk 0:02:07.8]} 20... e5 {[%clk
0:02:05.8]} 21. Nf3 {[%clk 0:02:06.3]} 21... e4 {[%clk 0:01:59.3]} 22. dxe4
{[%clk 0:01:52.3]} 22... Nxe4 {[%clk 0:01:53.9]} 23. Qc1 {[%clk 0:01:52.1]}
23... dxc4 {[%clk 0:01:42.8]} 24. Rxc4 {[%clk 0:01:50.6]} 24... c5 {[%clk
0:01:43]} 25. Ne3 {[%clk 0:01:44.6]} 25... Ndf6 {[%clk 0:01:42.4]} 26. Nd2
{[%clk 0:01:40.9]} 26... Nd6 {[%clk 0:01:05.9]} 27. Rf4 {[%clk 0:01:31.1]} 27...
Re7 {[%clk 0:01:00]} 28. Ndc4 {[%clk 0:01:30.7]} 28... Nde4 {[%clk 0:00:57.4]}
29. Nf5 {[%clk 0:01:26.4]} 29... Re6 {[%clk 0:00:51]} 30. f3 {[%clk 0:01:14.5]}
30... Ng5 {[%clk 0:00:46.8]} 31. Nfd6 {[%clk 0:00:56.9]} 31... Rd8 {[%clk
0:00:42]} 32. Nb5 {[%clk 0:00:55.6]} 32... Nd5 {[%clk 0:00:37.6]} 33. Rh4 {[%clk
0:00:44.2]} 33... Qb7 {[%clk 0:00:31.6]} 34. e4 {[%clk 0:00:43.9]} 34... Nc7
{[%clk 0:00:27.4]} 35. Nxc7 {[%clk 0:00:41.9]} 35... Qxc7 {[%clk 0:00:28.3]} 36.
Qf4 {[%clk 0:00:28.7]} 36... Qd7 {[%clk 0:00:22.3]} 37. Bh3 {[%clk 0:00:20.6]}
37... Nxh3+ {[%clk 0:00:21.7]} 38. Rxh3 {[%clk 0:00:19.4]} 38... Qd4+ {[%clk
0:00:21.6]} 39. Qe3 {[%clk 0:00:16.7]} 39... Qxe3+ {[%clk 0:00:21.2]} 40. Rxe3
{[%clk 0:00:14.4]} 40... Rd1+ {[%clk 0:00:21.2]} 41. Kf2 {[%clk 0:00:14.3]}
41... f5 {[%clk 0:00:20.5]} 42. exf5 {[%clk 0:00:10.2]} 42... Bxf5 {[%clk
0:00:21.4]} 43. g4 {[%clk 0:00:10]} 43... Rxe3 {[%clk 0:00:20.7]} 44. Kxe3
{[%clk 0:00:10]} 44... Be6 {[%clk 0:00:20.3]} 45. Rh5 {[%clk 0:00:04.9]} 45...
Re1+ {[%clk 0:00:19.3]} 46. Kd2 {[%clk 0:00:03.5]} 46... Rb1 {[%clk 0:00:19.2]}
47. Re5 {[%clk 0:00:02.4]} 47... Bxc4 {[%clk 0:00:18.5]} 48. bxc4 {[%clk
0:00:01.8]} 48... Rb2+ {[%clk 0:00:19.4]} 49. Ke3 {[%clk 0:00:01.1]} 49... Rxh2
{[%clk 0:00:20.3]} 50. Re7 {[%clk 0:00:01.1]} 50... Rc2 {[%clk 0:00:20.5]} 0-1